bitfinex-derivatives/quotes_ETHF0:USTF0_20251126
["timestamp","ask_amount","ask_price","bid_price","bid_amount"]
[1764186785000,1.18072247,3037.0,3036.9,0.4498]
[1764186785196,1.66602247,3037.5,3037.4,0.4498]
[1764186785399,1.18072247,3037.6,3037.5,0.4926]
[1764186785595,0.4448,3037.8,3037.7,0.4926]
[1764186786000,0.00329302,3037.8,3037.7,0.49588122]
[1764186786598,0.44809302,3037.8,3037.7,0.00328122]
[1764186788699,2.07473501,3037.8,3037.7,0.00328122]
[1764186796711,0.44809302,3037.8,3037.7,0.00328122]
[1764186798111,2.07473501,3037.8,3037.7,0.00328122]
[1764186799713,0.7588,3037.5,3037.0,0.7261]
[1764186799910,0.4911,3036.6,3036.0,0.268]
[1764186800108,0.4911,3036.1,3036.0,0.7261]
[1764186800408,1.62664199,3036.7,3036.0,2.35274199]
[1764186800708,1.91484199,3036.5,3036.0,0.7261]
[1764186800908,1.91484199,3036.5,3036.0,0.7290324]
[1764186801500,0.4911,3036.1,3036.0,0.7290324]
[1764186802314,2.11774199,3036.5,3036.4,0.4581]
[1764186802508,0.4911,3036.1,3036.0,0.7290324]
[1764186805108,0.4911,3036.1,3036.0,0.0029324]
[1764186806009,1.25739473,3036.1,3036.0,0.0029324]
[1764186806213,0.7798,3036.0,3035.0,0.2914]
[1764186806820,0.76619628,3035.9,3035.0,0.2914]
[1764186807022,0.2887,3036.0,3035.0,0.2914]
[1764186807222,0.2887,3036.0,3035.2,0.00494096]
[1764186810127,0.4911,3036.0,3035.9,0.4581]
[1764186811527,0.2882,3036.5,3036.0,0.2914]
[1764186812129,0.00494096,3036.6,3036.0,0.2914]
[1764186812328,0.84569907,3036.5,3036.0,0.2914]
[1764186812531,0.0807,3036.5,3036.0,0.2914]
[1764186812922,0.4911,3036.1,3036.0,0.7495]
[1764186813122,0.4911,3036.1,3036.0,0.4581]
[1764186813326,0.4911,3036.1,3036.0,0.7495]
[1764186813828,0.4911,3036.1,3036.0,0.4581]
[1764186814427,0.4911,3036.1,3036.0,0.7495]
[1764186814830,0.0807,3036.5,3036.0,0.7495]
[1764186815329,0.4911,3036.1,3036.0,0.7495]
[1764186818133,0.0807,3036.5,3036.0,0.7495]
[1764186818333,0.46,3036.5,3036.4,0.4796]
[1764186818524,0.5457,3036.5,3036.0,0.2914]
[1764186818832,0.46,3036.5,3036.4,0.4796]
[1764186820337,0.5457,3036.5,3036.0,0.2914]
[1764186821730,0.46,3036.1,3036.0,0.4796]
[1764186821931,0.0857,3036.5,3035.5,0.2914]
[1764186821932,0.2838,3036.0,3035.5,0.2914]
[1764186822234,0.46,3035.6,3035.5,0.771]
[1764186822430,0.46300961,3035.6,3035.5,0.771]
[1764186823229,0.46300961,3035.6,3035.5,0.4796]
[1764186823537,0.46300961,3035.6,3035.5,0.7637]
[1764186823733,0.00300961,3035.6,3035.5,0.7637]
[1764186826234,0.46300961,3035.6,3035.5,0.7637]
[1764186827937,0.00300961,3035.6,3035.5,0.7637]
[1764186828638,0.0857,3036.5,3035.5,0.7637]
[1764186828836,0.76933654,3036.4,3035.5,0.7637]
[1764186829037,0.76933654,3036.3,3035.5,0.7637]
[1764186829238,0.76933654,3036.2,3035.5,0.7637]
[1764186829534,0.76933654,3036.1,3035.5,0.7637]
[1764186829725,1.22933654,3036.0,3035.9,0.4796]
[1764186830132,1.51313654,3036.0,3035.5,0.2841]
[1764186830333,0.46,3035.9,3035.8,0.4796]
[1764186832440,0.46,3035.9,3035.5,0.2841]
[1764186832843,0.46,3035.6,3035.5,0.7637]
[1764186833937,0.2838,3036.0,3035.5,0.7637]
[1764186834140,1.23084147,3035.9,3035.8,0.4796]
[1764186836442,1.23084147,3035.9,3035.5,0.2841]
[1764186836745,1.23084147,3035.8,3035.7,0.4796]
[1764186837645,0.77084147,3035.8,3035.7,0.4796]
[1764186837943,0.46,3035.8,3035.7,0.4796]
[1764186838146,0.77084147,3035.8,3035.7,0.4796]
[1764186838345,0.46,3036.1,3036.0,0.4796]
[1764186838540,0.46,3036.1,3035.5,1.91244168]
[1764186838742,0.2838,3036.0,3035.5,0.2841]
[1764186838945,0.7712153,3035.9,3035.5,0.2841]
[1764186839150,1.2312153,3035.9,3035.8,0.4796]
[1764186840541,0.7438,3035.5,3035.4,1.76140287]
[1764186840745,0.46,3035.3,3035.2,3.79794096]
[1764186840944,0.46,3035.3,3035.2,0.48454096]
[1764186841148,0.46,3035.9,3035.8,0.4796]
[1764186841445,0.77144128,3035.9,3035.8,0.4796]
[1764186843343,0.27144128,3035.9,3035.8,0.4796]
[1764186843550,0.0035836,3036.2,3036.1,0.4796]
[1764186844655,0.46,3036.7,3036.6,0.4796]
[1764186845555,0.46,3036.7,3036.0,2.51443327]
[1764186845556,0.4453,3036.1,3036.0,2.51443327]
[1764186845951,0.4453,3036.0,3035.9,1.493]
[1764186846256,0.2779,3036.5,3036.0,0.273]
[1764186846753,0.2779,3036.5,3036.0,0.7539]
[1764186848854,0.4636,3036.5,3036.4,0.4809]
[1764186849259,0.46775322,3036.7,3036.6,0.4809]
[1764186849559,0.4636,3036.6,3036.0,0.273]
[1764186849859,0.4636,3036.6,3036.5,0.4809]
[1764186850157,0.00415322,3036.7,3036.6,0.4809]
[1764186850749,0.46775322,3036.7,3036.0,0.273]
[1764186855152,0.4636,3036.1,3036.0,0.7539]
[1764186855356,0.2722,3036.5,3036.0,0.7539]
[1764186855661,0.7358,3036.5,3036.0,0.273]
[1764186857162,0.4636,3036.5,3036.4,0.4809]
[1764186857354,1.23560378,3036.5,3036.4,0.4809]
[1764186859562,1.50780378,3036.5,3036.0,0.273]
[1764186859763,0.7358,3036.5,3036.0,0.273]
[1764186860762,0.4636,3036.5,3036.4,0.4809]
[1764186860954,1.23563056,3036.5,3036.4,0.4809]
[1764186861868,0.00415322,3036.7,3036.4,0.4809]
[1764186862059,1.23560197,3036.6,3036.5,0.4809]
[1764186863758,1.23560197,3036.6,3036.0,0.273]
[1764186863962,0.4636,3035.9,3035.8,0.4809]
[1764186864159,2.09119628,3035.9,3035.5,0.2841]
[1764186864667,0.4636,3035.9,3035.5,0.2841]
[1764186864856,0.4636,3035.9,3035.8,0.4809]
[1764186866062,0.4636,3035.6,3035.5,0.765]
[1764186866363,0.4636,3035.6,3035.5,0.4809]
[1764186866763,0.4636,3035.6,3035.2,1.77027423]
[1764186866964,0.4636,3035.6,3035.5,0.7539]
[1764186868362,0.4636,3036.0,3035.9,0.4809]
[1764186868670,0.4636,3035.6,3035.5,0.7539]
[1764186868971,0.2722,3036.0,3035.5,0.7539]
[1764186869169,0.77242547,3035.9,3035.5,0.7539]
[1764186869372,0.4636,3035.6,3035.5,0.7539]
[1764186871569,0.4636,3035.6,3035.5,0.4809]
[1764186872871,0.4636,3035.3,3035.2,0.48584096]
[1764186873073,1.62759628,3035.9,3035.2,0.48584096]
[1764186873274,0.77221886,3035.8,3035.2,0.48584096]
[1764186873468,0.77221886,3035.7,3035.2,0.48584096]
[1764186873663,1.62759628,3035.9,3035.2,0.48584096]
[1764186873873,0.77221886,3035.8,3035.2,0.48584096]
[1764186874074,1.23581886,3035.7,3035.6,0.4809]
[1764186874875,0.4636,3035.9,3035.8,0.4809]
[1764186875075,1.23564764,3036.1,3036.0,0.4809]
[1764186875276,1.23560388,3036.1,3036.0,0.4809]
[1764186875477,1.23560388,3036.1,3035.5,0.273]
[1764186875677,1.23730388,3036.0,3035.9,0.473]
[1764186877067,0.77200388,3036.0,3035.9,0.473]
[1764186877269,0.77253488,3036.0,3035.9,0.473]
[1764186877467,0.4653,3036.0,3035.9,0.473]
[1764186878175,1.23785855,3036.0,3035.9,0.473]
[1764186878676,1.23785855,3036.0,3035.5,4.066]
[1764186878677,0.4653,3035.6,3035.5,4.539]
[1764186878873,0.4653,3036.0,3035.9,0.473]
[1764186879178,0.4653,3036.1,3036.0,0.7591]
[1764186879674,1.23786357,3036.1,3036.0,0.7591]
[1764186880974,1.23786357,3036.1,3036.0,0.473]
[1764186882078,1.23786357,3036.1,3036.0,0.7591]
[1764186887382,1.23786357,3036.1,3035.6,3.793]
[1764186887686,0.77256357,3036.0,3035.6,3.793]
[1764186887880,0.4653,3035.7,3035.6,4.266]
[1764186888982,0.4653,3035.7,3035.6,3.793]
[1764186889181,0.4653,3035.3,3035.2,0.00494096]
[1764186889483,1.23855603,3035.3,3035.2,0.47794096]
[1764186889784,0.4653,3035.3,3035.2,0.47794096]
[1764186889974,0.4653,3035.6,3035.5,0.473]
[1764186890176,1.2386687,3035.6,3035.5,0.473]
[1764186890872,1.2386687,3035.6,3035.2,0.00494096]
[1764186890873,0.4653,3035.3,3035.2,0.47794096]
[1764186892482,0.4653,3035.3,3035.2,0.00494096]
[1764186892687,1.23365133,3035.3,3035.2,0.00494096]
[1764186893483,1.23365133,3035.3,3035.2,0.47794096]
[1764186894184,1.23365133,3035.3,3035.2,0.00494096]
[1764186894381,1.23365133,3035.3,3035.2,0.47794096]
[1764186895082,1.23365133,3035.3,3035.2,0.00494096]
[1764186901792,0.4653,3034.3,3034.2,0.473]
[1764186901986,0.4653,3034.9,3034.8,0.473]
[1764186902393,1.23016234,3034.9,3034.8,0.473]
[1764186902694,0.4653,3034.9,3034.8,0.473]
[1764186902988,0.4653,3034.9,3034.8,0.47679578]
[1764186902989,0.00312943,3034.9,3034.8,0.47679578]
[1764186903189,0.47024096,3035.2,3035.1,0.473]
[1764186903397,0.4653,3035.1,3035.0,0.473]
[1764186903589,0.4653,3034.9,3034.8,0.47679578]
[1764186903791,1.63253724,3035.2,3034.8,0.47679578]
[1764186903988,2.09783724,3035.2,3035.1,0.473]
[1764186904188,2.10147299,3035.2,3035.1,0.473]
[1764186904488,0.00857671,3035.2,3035.1,0.473]
[1764186905195,0.478,3034.9,3034.8,0.00379578]
[1764186905389,0.478,3034.9,3034.8,0.49139578]
[1764186907093,0.00857671,3035.2,3034.8,0.49139578]
[1764186908796,2.12139628,3034.9,3034.8,0.00379578]
[1764186909391,0.4938,3034.9,3034.8,0.45699578]
[1764186909590,0.00857671,3035.2,3035.1,0.4532]
[1764186910098,0.50237671,3035.2,3035.1,0.4532]
[1764186910693,0.4938,3035.1,3034.8,0.00379578]
[1764186910900,0.4938,3034.9,3034.8,0.45699578]
[1764186912399,0.4938,3034.9,3034.8,0.00379578]
[1764186913707,0.4938,3034.9,3034.8,0.45699578]
[1764186913914,2.13154614,3035.2,3035.1,0.4532]
[1764186914117,2.89627515,3035.2,3035.1,0.4532]
[1764186916018,1.26710572,3035.2,3035.1,0.4532]
[1764186918216,0.4938,3034.9,3034.8,0.00379578]
[1764186918420,2.12296943,3034.9,3034.8,0.45699578]
[1764186918608,0.4938,3034.9,3034.8,0.45699578]
[1764186922523,2.12296943,3034.9,3034.8,0.45699578]
[1764186924127,2.12296943,3034.9,3034.8,0.00379578]
[1764186926630,2.89089547,3034.9,3034.8,0.00379578]
[1764186926827,4.5200649,3034.9,3034.8,0.00379578]
[1764186927025,2.89089547,3034.9,3034.8,0.00379578]
[1764186931425,1.26172604,3034.9,3034.8,0.45699578]
[1764186931624,0.76792604,3034.9,3034.8,0.45699578]
[1764186931827,0.50237671,3035.2,3035.1,0.4532]
[1764186932026,1.26969198,3035.2,3035.1,0.4532]
[1764186932228,0.77589198,3035.2,3035.1,0.4532]
[1764186932625,0.00857671,3035.2,3035.1,0.4532]
[1764186934338,1.62916943,3035.8,3035.1,0.4532]
[1764186934532,0.76706589,3035.7,3035.1,0.4532]
[1764186934735,1.26086589,3035.6,3035.5,0.4532]
[1764186935330,0.77029974,3035.6,3035.5,0.7486]
[1764186936126,0.00323385,3035.6,3035.5,0.7486]
[1764186940828,0.00494096,3035.9,3035.8,0.4778]
[1764186941541,2.09711039,3035.9,3035.8,0.4778]
[1764186942142,2.10016473,3035.9,3035.8,0.4778]
[1764186943142,0.0079953,3035.9,3035.8,0.4778]
[1764186943339,2.09216943,3036.6,3036.0,0.2954]
[1764186943544,1.23040598,3036.5,3036.4,0.4778]
[1764186943743,0.463,3036.5,3036.4,0.4778]
[1764186948047,1.62916943,3036.6,3036.5,0.7732]
[1764186948346,2.09216943,3036.6,3036.5,0.7732]
[1764186949540,1.62916943,3036.6,3036.5,0.7732]
[1764186949744,2.09216943,3036.6,3036.5,0.7732]
[1764186949950,1.62916943,3036.6,3036.5,0.7732]
[1764186950244,0.00494096,3036.8,3036.7,0.4778]
[1764186950847,2.09216943,3037.4,3037.3,0.4778]
[1764186951047,2.09216943,3037.4,3037.3,0.48023517]
[1764186951652,0.463,3037.4,3037.3,0.48023517]
[1764186954755,2.09216943,3037.4,3037.3,0.00243517]
[1764186955356,2.09216943,3037.4,3037.3,0.48023517]
[1764186955554,2.09216943,3037.4,3037.3,0.00243517]
[1764186957954,0.463,3037.4,3037.3,0.48023517]
[1764186958155,2.09216943,3037.4,3037.3,0.00243517]
[1764186966255,2.86071413,3037.4,3036.5,0.2954]
[1764186966457,1.90736943,3037.0,3036.5,4.0884]
[1764186967162,2.0927046,3037.0,3036.9,0.4559]
[1764186967863,2.3624046,3037.0,3036.5,4.09108392]
[1764186968855,0.00494096,3037.7,3037.6,0.4559]
[1764186969060,1.90786943,3038.5,3037.6,2.08506943]
[1764186969361,0.4611,3038.5,3038.4,0.4559]
[1764186970161,2.09026943,3038.5,3038.4,0.4559]
[1764186970568,0.4611,3038.2,3038.1,0.46084096]
[1764186972263,2.09026943,3038.5,3038.4,0.4559]
[1764186972564,0.4611,3038.5,3038.4,0.4559]
[1764186972762,0.4611,3038.5,3038.1,0.00494096]
[1764186972963,0.5274,3038.5,3038.1,0.00494096]
[1764186973363,0.4611,3038.5,3038.4,0.4559]
[1764186973962,0.4611,3038.5,3038.1,0.00494096]
[1764186975263,0.4611,3038.2,3038.1,0.00494096]
[1764186975461,0.4611,3038.2,3038.1,0.46084096]
[1764186975768,0.0663,3038.5,3038.1,0.46084096]
[1764186976862,0.4611,3038.2,3038.1,0.00494096]
[1764186977167,0.4611,3038.2,3038.1,0.46084096]
[1764186983266,0.4611,3038.5,3038.4,0.4559]
[1764186983470,0.4611,3038.2,3038.1,0.46084096]
[1764186983673,0.4611,3038.2,3038.1,0.00494096]
[1764186984567,0.4611,3038.2,3038.1,0.46084096]
[1764186985766,0.4611,3037.8,3037.0,2.05933327]
[1764186985963,0.2872,3038.0,3037.0,0.294]
[1764186986161,0.4611,3038.0,3037.9,0.4559]
[1764186986370,1.22788608,3038.0,3037.9,0.4559]
[1764186986564,0.4611,3037.6,3037.5,0.4559]
[1764186986772,0.4611,3037.3,3037.2,0.00494096]
[1764186987068,1.22804887,3037.3,3037.2,0.00494096]
[1764186987668,0.4611,3036.6,3036.5,0.75398392]
[1764186987874,2.08648036,3036.6,3036.5,0.00268392]
[1764186988671,0.46604096,3036.9,3036.8,0.4559]
[1764186991578,0.4611,3036.6,3036.5,0.45858392]
[1764186992572,0.4611,3036.6,3036.5,0.75258392]
[1764186992972,0.4611,3036.6,3036.5,0.45858392]
[1764186994473,0.00494096,3036.9,3036.5,0.75258392]
[1764186994676,0.4611,3036.6,3036.5,0.75258392]
[1764186995178,0.00494096,3036.9,3036.5,0.75258392]
[1764186995378,0.00494096,3036.9,3036.8,0.4531]
[1764186998687,1.91258036,3038.0,3036.8,0.4531]
[1764186998888,1.91258036,3038.0,3036.8,4.2461]
[1764186999288,1.91258036,3038.0,3037.0,1.91418036]
[1764186999582,0.00494096,3037.8,3037.0,0.2888]
[1764187000589,0.48834096,3037.8,3037.7,0.4531]
[1764187001886,0.4834,3037.6,3037.1,3.793]
[1764187002182,2.10878036,3037.4,3037.3,0.4531]
[1764187002792,0.4834,3037.2,3037.1,3.793]
[1764187003289,0.4834,3037.2,3037.1,4.2461]
[1764187004894,1.62538036,3037.4,3037.3,0.4531]
[1764187005195,0.4834,3037.4,3037.3,0.4531]
[1764187006592,2.10878036,3037.7,3037.0,0.2888]
[1764187006986,2.10878036,3037.7,3037.6,0.4531]
[1764187008191,2.10878036,3037.7,3037.0,0.2888]
[1764187008986,2.10878036,3037.7,3037.6,0.4531]
[1764187009788,2.10878036,3037.7,3037.0,0.2888]
[1764187010000,0.4834,3037.1,3037.0,0.4531]
[1764187010395,0.4834,3037.1,3037.0,0.7419]
[1764187011195,2.10878036,3037.4,3037.3,0.4531]
[1764187011693,2.10878036,3037.4,3037.0,0.2888]
[1764187012289,2.10878036,3037.7,3037.6,0.4531]
[1764187012690,2.10878036,3037.7,3037.0,0.2888]
[1764187013699,2.10878036,3037.4,3037.3,0.4531]
[1764187014098,0.4834,3037.1,3037.0,0.7419]
[1764187014395,0.4834,3036.8,3036.7,4.2461]
[1764187014597,0.4834,3036.6,3036.5,0.74978392]
[1764187015002,0.4834,3036.6,3036.5,0.00268392]
[1764187015191,1.25677998,3036.6,3036.5,0.00268392]
[1764187016797,1.25677998,3036.6,3036.2,0.00494096]
[1764187016798,0.4834,3036.3,3036.2,0.00494096]
[1764187017192,0.4834,3035.6,3035.5,0.4531]
[1764187017400,0.4834,3035.5,3035.4,0.4531]
[1764187017604,0.4834,3035.5,3035.0,0.2888]
[1764187017605,0.7593,3035.5,3035.0,0.2888]
[1764187018102,0.76167647,3035.5,3035.0,0.29301671]
[1764187018303,0.00237647,3035.5,3035.4,0.4531]
[1764187018599,0.48577647,3035.5,3035.4,0.4531]
[1764187020108,0.00237647,3035.5,3035.4,0.4531]
[1764187020595,0.2759,3036.5,3035.5,0.7419]
[1764187020796,0.4834,3035.6,3035.5,0.7419]
[1764187021398,0.1122,3036.0,3035.5,0.7419]
[1764187021995,0.4834,3035.6,3035.0,0.00421671]
[1764187022197,0.7593,3035.0,3034.0,2.05413327]
[1764187022405,0.4834,3034.5,3034.4,0.4531]
[1764187022901,0.2759,3035.0,3034.5,0.2888]
[1764187023295,0.27911129,3035.0,3034.5,0.29159815]
[1764187025897,0.4834,3034.6,3034.5,0.29159815]
[1764187026097,0.4834,3034.6,3034.5,0.00279815]
[1764187026494,0.27911129,3035.0,3034.5,0.72789815]
[1764187026906,0.00321129,3035.0,3034.9,0.4648]
[1764187030410,0.00494096,3035.1,3035.0,0.7353]
[1764187031202,0.1122,3036.0,3035.0,0.7353]
[1764187031400,0.11351287,3036.0,3035.0,0.7353]
[1764187031794,2.76754094,3035.9,3035.0,0.7353]
[1764187032307,0.00494096,3035.8,3035.0,0.7353]
[1764187032506,2.4483572,3035.8,3035.0,0.7353]
[1764187036607,0.00494096,3035.8,3035.7,0.4648]
[1764187037003,0.47044096,3035.8,3035.7,0.4648]
[1764187037607,0.00494096,3035.8,3035.7,0.4648]
[1764187041905,0.47044096,3035.8,3035.7,0.4648]
[1764187042101,0.00494096,3035.8,3035.7,0.4648]
[1764187042308,0.47044096,3035.8,3035.7,0.4648]
[1764187042910,0.47044096,3035.8,3034.5,2.71671439]
[1764187042911,0.2888,3035.0,3034.5,0.27329815]
[1764187043213,0.4655,3034.6,3034.5,0.73809815]
[1764187043412,2.44341624,3035.2,3034.5,0.73809815]
[1764187043605,0.77417143,3035.1,3034.5,0.73809815]
[1764187043803,1.06297143,3035.0,3034.5,0.73809815]
[1764187044005,0.2888,3035.0,3034.5,0.73809815]
[1764187044207,0.77505322,3034.9,3034.5,0.73809815]
[1764187044512,0.4655,3034.6,3034.5,0.00279815]
[1764187044915,0.4655,3034.6,3034.5,0.46759815]
[1764187045915,0.4655,3034.6,3034.5,0.00279815]
[1764187046218,0.7543,3034.5,3033.7,1.036]
[1764187046415,3.21866814,3034.4,3033.7,1.036]
[1764187046608,0.4655,3033.8,3033.7,1.5008]
[1764187046912,0.4655,3033.6,3033.0,0.2705]
[1764187047114,0.4655,3033.5,3033.4,0.4648]
[1764187047314,0.46898947,3033.5,3033.4,0.46892761]
[1764187047711,0.46898947,3033.5,3033.4,0.00412761]
[1764187047914,0.54198947,3033.5,3033.4,0.00412761]
[1764187048518,0.46898947,3033.5,3033.4,0.00412761]
[1764187048812,0.00348947,3033.5,3033.4,0.46892761]
[1764187049219,0.46898947,3033.5,3033.4,0.46892761]
[1764187049418,0.54198947,3033.5,3033.4,0.00412761]
[1764187049716,0.54198947,3033.5,3033.4,0.46892761]
[1764187049717,0.00348947,3033.5,3033.4,0.46892761]
[1764187049921,0.46898947,3033.5,3033.4,0.00412761]
[1764187050214,0.00348947,3033.5,3033.4,0.46892761]
[1764187051212,1.47216634,3034.5,3033.7,0.4648]
[1764187051518,0.2888,3034.5,3033.7,0.4648]
[1764187052418,0.00494096,3034.4,3033.7,0.4648]
[1764187056821,0.47044096,3034.4,3034.3,0.4648]
[1764187060520,0.47044096,3034.4,3034.0,0.2881]
[1764187060727,0.4472,3034.1,3034.0,0.735]
[1764187061025,0.4472,3034.1,3033.6,3.793]
[1764187061331,0.4472,3034.1,3034.0,0.735]
[1764187061527,0.00494096,3034.4,3034.0,0.735]
[1764187061727,0.45214096,3034.4,3034.3,0.4469]
[1764187064216,0.00494096,3034.4,3034.3,0.4469]
[1764187064421,0.45214096,3034.4,3034.0,0.2881]
[1764187064630,0.4472,3034.1,3034.0,0.735]
[1764187065230,0.00494096,3034.4,3034.3,0.4469]
[1764187065429,0.45214096,3034.4,3034.0,0.2881]
[1764187066630,0.00494096,3034.4,3034.3,0.4469]
[1764187067821,1.63056634,3035.4,3035.3,0.4469]
[1764187068025,1.22333631,3035.4,3035.3,0.4469]
[1764187071132,1.22333631,3035.4,3035.0,0.29304096]
[1764187071332,1.22333631,3035.3,3035.2,0.4469]
[1764187072630,0.77613631,3035.3,3035.2,0.4469]
[1764187072933,1.22333631,3035.3,3035.2,0.4469]
[1764187073330,0.77613631,3035.3,3035.2,0.4469]
[1764187073530,0.4472,3035.6,3035.5,0.4469]
[1764187073732,1.22541362,3035.6,3035.5,0.4469]
[1764187074238,1.22541362,3035.6,3035.0,0.29304096]
[1764187074531,2.4483572,3035.7,3035.0,0.29304096]
[1764187074532,0.77821362,3035.5,3035.0,0.29304096]
[1764187074731,0.77821362,3035.4,3035.0,0.29304096]
[1764187074928,1.22541362,3035.3,3035.2,0.4469]
[1764187076136,0.4472,3035.3,3035.2,0.4469]
[1764187077736,2.8955572,3035.7,3035.6,0.4469]
[1764187077936,3.67335568,3035.7,3035.6,0.45067218]
[1764187078136,3.67335568,3035.7,3035.6,0.00377218]
[1764187083954,3.67335568,3035.7,3035.6,0.45067218]
[1764187083955,0.78273944,3035.7,3035.6,0.45067218]
[1764187084156,2.72801624,3036.5,3035.6,0.45067218]
[1764187084157,1.63056634,3036.5,3036.4,0.4469]
[1764187084357,0.77800138,3036.5,3036.4,0.4469]
[1764187084757,0.77784682,3036.5,3036.4,0.4469]
[1764187085050,0.2846,3037.0,3036.5,0.2881]
[1764187085257,0.77723027,3036.9,3036.5,0.2881]
[1764187085455,1.22443027,3036.8,3036.7,0.4469]
[1764187085956,0.4773,3036.6,3036.5,0.7604]
[1764187086154,0.557,3036.5,3036.4,0.00494096]
[1764187089253,0.4773,3036.5,3036.4,0.47724096]
[1764187089459,0.2846,3037.0,3036.5,0.28]
[1764187089655,0.4519,3036.6,3036.5,0.7569]
[1764187090158,0.2846,3037.0,3036.4,0.00494096]
[1764187090159,0.4519,3036.5,3036.4,0.00494096]
[1764187090358,0.5477,3036.5,3036.4,0.00494096]
[1764187090562,0.4519,3036.5,3036.4,0.48184096]
[1764187091058,0.5477,3036.5,3036.4,0.00494096]
[1764187091453,0.4519,3036.5,3036.4,0.48184096]
[1764187092356,2.89531624,3036.8,3036.7,0.4769]
[1764187092567,0.4519,3036.8,3036.7,0.4769]
[1764187095366,0.4519,3036.5,3036.4,0.00494096]
[1764187095761,0.05652903,3036.5,3036.4,0.00494096]
[1764187095964,0.05652903,3036.5,3036.4,0.48184096]
[1764187096967,0.05652903,3036.5,3036.4,0.00494096]
[1764187097867,0.05652903,3036.5,3036.4,0.48184096]
[1764187098260,3.21886918,3036.8,3036.7,0.4769]
[1764187098571,0.4519,3036.6,3036.5,0.7569]
[1764187098867,0.4519,3036.5,3036.4,0.00494096]
[1764187099665,0.4519,3036.5,3036.4,0.48184096]
[1764187100367,0.16468,3037.0,3036.4,0.48184096]
[1764187100563,0.77791795,3036.9,3036.5,0.28]
[1764187100868,0.16468,3037.0,3036.5,0.28]
[1764187100869,0.4519,3036.6,3036.5,0.7569]
[1764187101070,0.4519,3036.5,3036.4,0.00494096]
[1764187101771,0.4519,3036.5,3036.4,0.48184096]
[1764187101968,0.7056,3036.5,3036.4,0.00494096]
[1764187102168,4.4153689,3036.5,3036.4,0.00494096]
[1764187104162,0.77809972,3036.5,3036.4,0.48184096]
[1764187104364,0.2537,3037.0,3036.4,0.00494096]
[1764187104365,0.4519,3036.8,3036.4,0.00494096]
[1764187104564,0.2537,3037.0,3036.5,0.7569]
[1764187104565,0.4519,3036.6,3036.5,0.7569]
[1764187104766,1.18336634,3037.1,3036.5,0.7569]
[1764187104965,0.77849938,3037.0,3036.5,0.7569]
[1764187105171,0.77849938,3036.9,3036.5,0.7569]
[1764187105371,0.4519,3036.6,3036.5,0.7569]
[1764187105568,1.23039938,3036.6,3036.5,0.7569]
[1764187105771,0.77849938,3036.6,3036.5,0.7569]
[1764187106072,1.34802634,3037.3,3036.5,0.7569]
[1764187106272,0.77880246,3037.2,3036.5,0.7569]
[1764187106474,0.77880246,3037.1,3036.5,0.7569]
[1764187106669,0.77880246,3037.0,3036.5,0.7569]
[1764187106871,0.4519,3036.6,3036.5,0.7569]
[1764187107074,0.4519,3036.5,3036.4,0.48184096]
[1764187107674,0.05653041,3036.5,3036.4,0.48184096]
[1764187109378,0.05653041,3036.5,3036.4,0.00494096]
[1764187109580,0.83789583,3036.5,3036.4,0.00494096]
[1764187112079,2.02126217,3036.5,3036.4,0.00494096]
[1764187114086,0.83789583,3036.5,3036.4,0.00494096]
[1764187114286,2.02223769,3036.5,3036.4,0.00494096]
[1764187116587,3.65043684,3036.5,3036.4,0.00494096]
[1764187117895,4.18792165,3036.5,3035.6,0.48497218]
[1764187118094,2.05249915,3036.0,3035.9,0.4812]
[1764187118295,2.83386457,3036.0,3035.9,0.4812]
[1764187118489,0.78136542,3036.0,3035.9,0.4812]
[1764187118684,1.62819915,3036.3,3036.2,0.4812]
[1764187118886,2.41119235,3036.3,3036.2,0.4812]
[1764187119594,2.83549235,3036.3,3036.0,0.2808]
[1764187119796,1.2072932,3036.2,3036.1,0.4812]
[1764187120093,0.7829932,3036.2,3036.1,0.4812]
[1764187121594,1.2072932,3036.2,3036.1,0.4812]
[1764187122192,0.7829932,3036.2,3036.1,0.4812]
[1764187122991,0.4243,3036.1,3035.9,0.00494096]
[1764187123197,2.83549235,3036.0,3035.9,0.00494096]
[1764187123893,2.83549235,3036.0,3035.9,0.48614096]
[1764187124795,2.83549235,3036.0,3035.9,0.00494096]
[1764187125489,4.01980315,3036.0,3035.9,0.00494096]
[1764187126389,5.6480023,3036.0,3035.9,0.00494096]
[1764187126595,0.4243,3035.7,3035.6,0.00377218]
[1764187126794,2.05249915,3035.7,3035.6,0.00377218]
[1764187126991,0.4243,3035.1,3034.5,0.28]
[1764187127191,0.4243,3035.1,3034.5,0.7612]
[1764187127192,0.4243,3034.6,3034.5,0.7612]
[1764187127493,2.05249915,3034.6,3034.5,0.7612]
[1764187128196,2.05628051,3034.6,3034.5,0.76492907]
[1764187128403,0.00378136,3034.6,3034.5,0.76492907]
[1764187133107,4.54809906,3035.7,3034.5,0.76492907]
[1764187133108,0.4281,3035.6,3035.0,0.2808]
[1764187133309,0.4281,3035.1,3035.0,0.2808]
[1764187133616,0.4281,3035.1,3035.0,0.762]
[1764187134802,0.00494096,3035.4,3035.0,0.762]
[1764187135403,0.00494096,3035.4,3035.3,0.4812]
[1764187135607,0.43304096,3035.4,3035.3,0.4812]
[1764187136111,1.21436323,3035.4,3035.3,0.4812]
[1764187136616,0.78626323,3035.4,3035.3,0.4812]
[1764187136818,0.00494096,3035.4,3035.3,0.4812]
[1764187138609,0.43304096,3035.4,3035.3,0.4812]
[1764187138917,0.00494096,3035.4,3035.3,0.4812]
[1764187142817,2.76974198,3036.1,3035.3,0.4812]
[1764187143018,0.783619,3036.0,3035.5,0.2808]
[1764187143220,1.211719,3035.9,3035.8,0.4812]
[1764187144518,1.211719,3035.9,3035.5,0.2808]
[1764187144720,1.211719,3035.8,3035.7,0.4812]
[1764187145019,0.4281,3035.6,3035.5,0.762]
[1764187146415,0.4281,3035.6,3035.5,0.2808]
[1764187146718,1.2122208,3035.6,3035.5,0.2808]
[1764187147817,1.2122208,3035.6,3035.0,0.2808]
[1764187148019,0.4281,3035.6,3035.0,0.2808]
[1764187148322,0.4288,3035.1,3035.0,0.7623]